{"text_format":"1","workbook":"xlsx","n_sheets":3,"sheets":["اسماء المعلمين ","كشف البصمة الشهر ي","الحضور"],"not_rendered":{"charts":0,"images":0,"macros":1,"external_links":0,"defined_names":2,"comments":0,"pivot_tables":0},"unopened":[],"bounds":{"document_bytes":16777216,"sheet_cells":100000,"rows_first":2000,"rows_last":500,"rows_between":2000,"halvings":0,"cell_chars":16384,"cell_head_chars":4096},"cells_cut":0,"cells_raw":0,"read":"whole","date_system":"1900"}

{"sheet":"اسماء المعلمين ","index":0,"n_rows":62,"n_cols":3,"rows_kept":62,"cut":false,"hidden":false,"merged":[[6,0,7,0],[6,1,7,1],[6,2,7,2]]}
[]
[]
[]
[]
[]
[]
["الرقم","الرقم الوزاري ","اسم الموظف"]
[]
[1,153,"انس "]
[2,200,"راشد "]
[3]
[4]
[5]
[6]
[7]
[8]
[9]
[10]
[11]
[12]
[13]
[14]
[15]
[16]
[17]
[18]
[19]
[20]
[21]
[22]
[23]
[24]
[25]
[26]
[27]
[28]
[29]
[30]
[31]
[32]
[33]
[34]
[35]
[36]
[37]
[38]
[39]
[40]
[41]
[42]
[43]
[44]
[45]
[46]
[47]
[48]
[49]
[50]
[51]
[52]
[53]
[54]

{"sheet":"كشف البصمة الشهر ي","index":1,"n_rows":45,"n_cols":9,"rows_kept":45,"cut":false,"hidden":false,"merged":[]}
["الوقت الإجمالي","اخر تسجيل خروج","اول تسجيل دخول","التاريخ","القسم","الإسم","الرقم الوزاري"]
["281","12:30","07:49","2021-09-02",null,"انس ",153]
["258","12:08","07:51","2021-09-05",null,"انس ",153]
["286","12:32","07:47","2021-09-06",null,"انس ",153]
["236","11:44","07:48","2021-09-07",null,"انس ",153]
["249","12:00","07:52","2021-09-08",null,"انس ",153]
["226","11:41","07:55","2021-09-09",null,"انس ",153]
["258","12:16","07:59","2021-09-12",null,"انس ",153]
["259","12:09","07:50","2021-09-13",null,"انس ",153]
["263","12:15","07:53","2021-09-14",null,"انس ",153]
["271","12:11","07:41","2021-09-15",null,"انس ",153]
["263","12:10","07:47","2021-09-16",null,"انس ",153]
["278","12:21","07:44","2021-09-19",null,"انس ",153]
["273","12:21","07:48","2021-09-21",null,"انس ",153]
["282","12:26","07:44","2021-09-22",null,"انس ",153]
["293","12:23","07:31","2021-09-23",null,"انس ",153]
["259","12:05","07:47","2021-09-26",null,"انس ",153]
["251","12:04","07:53","2021-09-27",null,"انس ",153]
["240","11:44","07:44","2021-09-28",null,"انس ",153]
["256","12:03","07:47","2021-09-29",null,"انس ",153]
["258","12:08","07:50","2021-09-30",null,"انس ",153]
["174","11:25","08:31","2021-09-01",null,"راشد",200]
["224","12:27","08:44","2021-09-05",null,"راشد",200]
["212","12:16","08:45","2021-09-06",null,"راشد",200]
[null,null,"08:46","2021-09-07",null,"راشد",200]
["203","12:01","08:38","2021-09-08",null,"راشد",200]
[null,null,"08:30","2021-09-09",null,"راشد",200]
["200","11:44","08:25","2021-09-12",null,"راشد",200]
[null,null,"07:30","2021-09-13",null,"راشد",200]
["225","11:45","08:00","2021-09-14",null,"راشد",200]
["216","11:57","08:22","2021-09-15",null,"راشد",200]
["215","12:33","08:58","2021-09-19",null,"راشد",200]
["232","12:00","08:09","2021-09-20",null,"راشد",200]
["265","12:23","07:58","2021-09-21",null,"راشد",200]
[null,null,"07:45","2021-09-22",null,"راشد",200]
["266","12:16","07:50","2021-09-23",null,"راشد",200]
["241","12:21","08:20","2021-09-26",null,"راشد",200]
["268","12:12","07:45","2021-09-27",null,"راشد",200]
["225","12:13","08:29","2021-09-28",null,"راشد",200]
["342","12:55","07:14","2021-09-29",null,"راشد",200]
["191","11:46","08:36","2021-09-30",null,"راشد",200]
[]
[]
[]
[null,null,null,null,null,null,null,null,"`"]

{"sheet":"الحضور","index":2,"n_rows":66,"n_cols":127,"rows_kept":66,"cut":false,"hidden":false,"merged":[[6,122,7,122],[6,123,7,123],[6,124,7,124],[6,125,7,125],[6,126,7,126],[6,117,7,117],[6,118,7,118],[6,119,7,119],[6,120,7,120],[6,121,7,121],[6,112,7,112],[6,113,7,113],[6,114,7,114],[6,115,7,115],[6,116,7,116],[6,107,7,107],[6,108,7,108],[6,109,7,109],[6,110,7,110],[6,111,7,111],[6,102,7,102],[6,103,7,103],[6,104,7,104],[6,105,7,105],[6,106,7,106],[6,97,7,97],[6,98,7,98],[6,99,7,99],[6,100,7,100],[6,101,7,101],[6,92,7,92],[6,93,7,93],[6,94,7,94],[6,95,7,95],[6,96,7,96],[6,87,7,87],[6,88,7,88],[6,89,7,89],[6,90,7,90],[6,91,7,91],[6,82,7,82],[6,83,7,83],[6,84,7,84],[6,85,7,85],[6,86,7,86],[6,77,7,77],[6,78,7,78],[6,79,7,79],[6,80,7,80],[6,81,7,81],[6,72,7,72],[6,73,7,73],[6,74,7,74],[6,75,7,75],[6,76,7,76],[6,67,7,67],[6,68,7,68],[6,69,7,69],[6,70,7,70],[6,71,7,71],[6,62,7,62],[6,63,7,63],[6,64,7,64],[6,65,7,65],[6,66,7,66],[6,57,7,57],[6,58,7,58],[6,59,7,59],[6,60,7,60],[6,61,7,61],[6,52,7,52],[6,53,7,53],[6,54,7,54],[6,55,7,55],[6,56,7,56],[6,47,7,47],[6,48,7,48],[6,49,7,49],[6,50,7,50],[6,51,7,51],[6,42,7,42],[6,43,7,43],[6,44,7,44],[6,45,7,45],[6,46,7,46],[6,37,7,37],[6,38,7,38],[6,39,7,39],[6,40,7,40],[6,41,7,41],[6,32,7,32],[6,33,7,33],[6,34,7,34],[6,35,7,35],[6,36,7,36],[6,27,7,27],[6,28,7,28],[6,29,7,29],[6,30,7,30],[6,31,7,31],[6,22,7,22],[6,23,7,23],[6,24,7,24],[6,25,7,25],[6,26,7,26],[6,17,7,17],[6,18,7,18],[6,19,7,19],[6,20,7,20],[6,21,7,21],[6,12,7,12],[6,13,7,13],[6,14,7,14],[6,15,7,15],[6,16,7,16],[6,7,7,7],[6,8,7,8],[6,9,7,9],[6,10,7,10],[6,11,7,11],[5,107,5,110],[5,111,5,114],[5,115,5,118],[5,119,5,122],[5,123,5,126],[5,87,5,90],[5,91,5,94],[5,95,5,98],[5,99,5,102],[5,103,5,106],[5,67,5,70],[5,71,5,74],[5,75,5,78],[5,79,5,82],[5,83,5,86],[5,47,5,50],[5,51,5,54],[5,55,5,58],[5,59,5,62],[5,63,5,66],[4,107,4,110],[4,111,4,114],[4,115,4,118],[4,119,4,122],[4,123,4,126],[4,87,4,90],[4,91,4,94],[4,95,4,98],[4,99,4,102],[4,103,4,106],[4,67,4,70],[4,71,4,74],[4,75,4,78],[4,79,4,82],[4,83,4,86],[4,47,4,50],[4,51,4,54],[4,55,4,58],[4,59,4,62],[4,63,4,66],[5,27,5,30],[5,31,5,34],[5,35,5,38],[5,39,5,42],[5,43,5,46],[5,7,5,10],[5,11,5,14],[5,15,5,18],[5,19,5,22],[5,23,5,26],[4,27,4,30],[4,31,4,34],[4,35,4,38],[4,39,4,42],[4,43,4,46],[4,7,4,10],[4,11,4,14],[4,15,4,18],[4,19,4,22],[4,23,4,26],[0,3,0,7],[1,3,1,4],[1,5,1,6],[2,3,2,4],[2,5,2,6],[4,3,4,6],[5,3,5,6],[4,2,7,2],[4,0,7,0],[4,1,7,1],[6,3,7,3],[6,4,7,4],[6,5,7,5],[6,6,7,6]]}
[]
[null,"الشهـــر","السنة","اول تسجيل دخول العمل ",null,"اخر تسجيل خروجالدوام"]
[null,9,2021,"07:45:00",null,"14:00:00"]
[]
["الرقم","الرقم الوزاري ","اسم الموظف",{"$f":"TEXT(D6,\"DDD\")","v":"الأربعاء"},null,null,null,{"$f":"TEXT(H6,\"DDD\")","v":"الخميس"},null,null,null,{"$f":"TEXT(L6,\"DDD\")","v":"الجمعة"},null,null,null,{"$f":"TEXT(P6,\"DDD\")","v":"السبت"},null,null,null,{"$f":"TEXT(T6,\"DDD\")","v":"الأحد"},null,null,null,{"$f":"TEXT(X6,\"DDD\")","v":"الإثنين"},null,null,null,{"$f":"TEXT(AB6,\"DDD\")","v":"الثلاثاء"},null,null,null,{"$f":"TEXT(AF6,\"DDD\")","v":"الأربعاء"},null,null,null,{"$f":"TEXT(AJ6,\"DDD\")","v":"الخميس"},null,null,null,{"$f":"TEXT(AN6,\"DDD\")","v":"الجمعة"},null,null,null,{"$f":"TEXT(AR6,\"DDD\")","v":"السبت"},null,null,null,{"$f":"TEXT(AV6,\"DDD\")","v":"الأحد"},null,null,null,{"$f":"TEXT(AZ6,\"DDD\")","v":"الإثنين"},null,null,null,{"$f":"TEXT(BD6,\"DDD\")","v":"الثلاثاء"},null,null,null,{"$f":"TEXT(BH6,\"DDD\")","v":"الأربعاء"},null,null,null,{"$f":"TEXT(BL6,\"DDD\")","v":"الخميس"},null,null,null,{"$f":"TEXT(BP6,\"DDD\")","v":"الجمعة"},null,null,null,{"$f":"TEXT(BT6,\"DDD\")","v":"السبت"},null,null,null,{"$f":"TEXT(BX6,\"DDD\")","v":"الأحد"},null,null,null,{"$f":"TEXT(CB6,\"DDD\")","v":"الإثنين"},null,null,null,{"$f":"TEXT(CF6,\"DDD\")","v":"الثلاثاء"},null,null,null,{"$f":"TEXT(CJ6,\"DDD\")","v":"الأربعاء"},null,null,null,{"$f":"TEXT(CN6,\"DDD\")","v":"الخميس"},null,null,null,{"$f":"TEXT(CR6,\"DDD\")","v":"الجمعة"},null,null,null,{"$f":"TEXT(CV6,\"DDD\")","v":"السبت"},null,null,null,{"$f":"TEXT(CZ6,\"DDD\")","v":"الأحد"},null,null,null,{"$f":"TEXT(DD6,\"DDD\")","v":"الإثنين"},null,null,null,{"$f":"TEXT(DH6,\"DDD\")","v":"الثلاثاء"},null,null,null,{"$f":"TEXT(DL6,\"DDD\")","v":"الأربعاء"},null,null,null,{"$f":"TEXT(DP6,\"DDD\")","v":"الخميس"},null,null,null,{"$f":"TEXT(DT6,\"DDD\")","v":"الجمعة"}]
[null,null,null,{"$f":"DATE($C$3,$B$3,COLUMN(A:A))","v":"2021-09-01"},null,null,null,{"$f":"DATE($C$3,$B$3,COLUMN(B:B))","v":"2021-09-02"},null,null,null,{"$f":"DATE($C$3,$B$3,COLUMN(C:C))","v":"2021-09-03"},null,null,null,{"$f":"DATE($C$3,$B$3,COLUMN(D:D))","v":"2021-09-04"},null,null,null,{"$f":"DATE($C$3,$B$3,COLUMN(E:E))","v":"2021-09-05"},null,null,null,{"$f":"DATE($C$3,$B$3,COLUMN(F:F))","v":"2021-09-06"},null,null,null,{"$f":"DATE($C$3,$B$3,COLUMN(G:G))","v":"2021-09-07"},null,null,null,{"$f":"DATE($C$3,$B$3,COLUMN(H:H))","v":"2021-09-08"},null,null,null,{"$f":"DATE($C$3,$B$3,COLUMN(I:I))","v":"2021-09-09"},null,null,null,{"$f":"DATE($C$3,$B$3,COLUMN(J:J))","v":"2021-09-10"},null,null,null,{"$f":"DATE($C$3,$B$3,COLUMN(K:AO))","v":"2021-09-11"},null,null,null,{"$f":"DATE($C$3,$B$3,COLUMN(L:L))","v":"2021-09-12"},null,null,null,{"$f":"DATE($C$3,$B$3,COLUMN(M:M))","v":"2021-09-13"},null,null,null,{"$f":"DATE($C$3,$B$3,COLUMN(N:N))","v":"2021-09-14"},null,null,null,{"$f":"DATE($C$3,$B$3,COLUMN(O:O))","v":"2021-09-15"},null,null,null,{"$f":"DATE($C$3,$B$3,COLUMN(P:P))","v":"2021-09-16"},null,null,null,{"$f":"DATE($C$3,$B$3,COLUMN(Q:Q))","v":"2021-09-17"},null,null,null,{"$f":"DATE($C$3,$B$3,COLUMN(R:R))","v":"2021-09-18"},null,null,null,{"$f":"DATE($C$3,$B$3,COLUMN(S:S))","v":"2021-09-19"},null,null,null,{"$f":"DATE($C$3,$B$3,COLUMN(T:T))","v":"2021-09-20"},null,null,null,{"$f":"DATE($C$3,$B$3,COLUMN(U:U))","v":"2021-09-21"},null,null,null,{"$f":"DATE($C$3,$B$3,COLUMN(V:V))","v":"2021-09-22"},null,null,null,{"$f":"DATE($C$3,$B$3,COLUMN(W:W))","v":"2021-09-23"},null,null,null,{"$f":"DATE($C$3,$B$3,COLUMN(X:X))","v":"2021-09-24"},null,null,null,{"$f":"DATE($C$3,$B$3,COLUMN(Y:Y))","v":"2021-09-25"},null,null,null,{"$f":"DATE($C$3,$B$3,COLUMN(Z:Z))","v":"2021-09-26"},null,null,null,{"$f":"DATE($C$3,$B$3,COLUMN(AA:AA))","v":"2021-09-27"},null,null,null,{"$f":"DATE($C$3,$B$3,COLUMN(AB:DW))","v":"2021-09-28"},null,null,null,{"$f":"DATE($C$3,$B$3,COLUMN(AC:AC))","v":"2021-09-29"},null,null,null,{"$f":"DATE($C$3,$B$3,COLUMN(AD:AD))","v":"2021-09-30"},null,null,null,{"$f":"DATE($C$3,$B$3,COLUMN(AE:AE))","v":"2021-10-01"}]
[null,null,null,"اول تسجيل دخول ","اخر تسجيل خروج","تأخير","ملاحظة ","اول تسجيل دخول ","اخر تسجيل خروج","تأخير","ملاحظة ","اول تسجيل دخول ","اخر تسجيل خروج","تأخير","ملاحظة ","اول تسجيل دخول ","اخر تسجيل خروج","تأخير","ملاحظة ","اول تسجيل دخول ","اخر تسجيل خروج","تأخير","ملاحظة ","اول تسجيل دخول ","اخر تسجيل خروج","تأخير","ملاحظة ","اول تسجيل دخول ","اخر تسجيل خروج","تأخير","ملاحظة ","اول تسجيل دخول ","اخر تسجيل خروج","تأخير","ملاحظة ","اول تسجيل دخول ","اخر تسجيل خروج","تأخير","ملاحظة ","اول تسجيل دخول ","اخر تسجيل خروج","تأخير","ملاحظة ","اول تسجيل دخول ","اخر تسجيل خروج","تأخير","ملاحظة ","اول تسجيل دخول ","اخر تسجيل خروج","تأخير","ملاحظة ","اول تسجيل دخول ","اخر تسجيل خروج","تأخير","ملاحظة ","اول تسجيل دخول ","اخر تسجيل خروج","تأخير","ملاحظة ","اول تسجيل دخول ","اخر تسجيل خروج","تأخير","ملاحظة ","اول تسجيل دخول ","اخر تسجيل خروج","تأخير","ملاحظة ","اول تسجيل دخول ","اخر تسجيل خروج","تأخير","ملاحظة ","اول تسجيل دخول ","اخر تسجيل خروج","تأخير","ملاحظة ","اول تسجيل دخول ","اخر تسجيل خروج","تأخير","ملاحظة ","اول تسجيل دخول ","اخر تسجيل خروج","تأخير","ملاحظة ","اول تسجيل دخول ","اخر تسجيل خروج","تأخير","ملاحظة ","اول تسجيل دخول ","اخر تسجيل خروج","تأخير","ملاحظة ","اول تسجيل دخول ","اخر تسجيل خروج","تأخير","ملاحظة ","اول تسجيل دخول ","اخر تسجيل خروج","تأخير","ملاحظة ","اول تسجيل دخول ","اخر تسجيل خروج","تأخير","ملاحظة ","اول تسجيل دخول ","اخر تسجيل خروج","تأخير","ملاحظة ","اول تسجيل دخول ","اخر تسجيل خروج","تأخير","ملاحظة ","اول تسجيل دخول ","اخر تسجيل خروج","تأخير","ملاحظة ","اول تسجيل دخول ","اخر تسجيل خروج","تأخير","ملاحظة ","اول تسجيل دخول ","اخر تسجيل خروج","تأخير","ملاحظة ","اول تسجيل دخول ","اخر تسجيل خروج","تأخير","ملاحظة "]
[null,null,null,null,null,null,null,null,null,{"$f":"IF(H8>$D$3,H8-$D$3,\"\")","v":""},{"$f":"IF(I8<>\"\",IF(I8<$F$3,$F$3-I8,\"\"),\"\")","v":""},null,null,{"$f":"IF(L8>$D$3,L8-$D$3,\"\")","v":""},{"$f":"IF(M8<>\"\",IF(M8<$F$3,$F$3-M8,\"\"),\"\")","v":""},null,null,{"$f":"IF(P8>$D$3,P8-$D$3,\"\")","v":""},{"$f":"IF(Q8<>\"\",IF(Q8<$F$3,$F$3-Q8,\"\"),\"\")","v":""},null,null,{"$f":"IF(T8>$D$3,T8-$D$3,\"\")","v":""},{"$f":"IF(U8<>\"\",IF(U8<$F$3,$F$3-U8,\"\"),\"\")","v":""},null,null,{"$f":"IF(X8>$D$3,X8-$D$3,\"\")","v":""},{"$f":"IF(Y8<>\"\",IF(Y8<$F$3,$F$3-Y8,\"\"),\"\")","v":""},null,null,{"$f":"IF(AB8>$D$3,AB8-$D$3,\"\")","v":""},{"$f":"IF(AC8<>\"\",IF(AC8<$F$3,$F$3-AC8,\"\"),\"\")","v":""},null,null,{"$f":"IF(AF8>$D$3,AF8-$D$3,\"\")","v":""},{"$f":"IF(AG8<>\"\",IF(AG8<$F$3,$F$3-AG8,\"\"),\"\")","v":""},null,null,{"$f":"IF(AJ8>$D$3,AJ8-$D$3,\"\")","v":""},{"$f":"IF(AK8<>\"\",IF(AK8<$F$3,$F$3-AK8,\"\"),\"\")","v":""},null,null,{"$f":"IF(AN8>$D$3,AN8-$D$3,\"\")","v":""},{"$f":"IF(AO8<>\"\",IF(AO8<$F$3,$F$3-AO8,\"\"),\"\")","v":""},null,null,{"$f":"IF(AR8>$D$3,AR8-$D$3,\"\")","v":""},{"$f":"IF(AS8<>\"\",IF(AS8<$F$3,$F$3-AS8,\"\"),\"\")","v":""},null,null,{"$f":"IF(AV8>$D$3,AV8-$D$3,\"\")","v":""},{"$f":"IF(AW8<>\"\",IF(AW8<$F$3,$F$3-AW8,\"\"),\"\")","v":""},null,null,{"$f":"IF(AZ8>$D$3,AZ8-$D$3,\"\")","v":""},{"$f":"IF(BA8<>\"\",IF(BA8<$F$3,$F$3-BA8,\"\"),\"\")","v":""},null,null,{"$f":"IF(BD8>$D$3,BD8-$D$3,\"\")","v":""},{"$f":"IF(BE8<>\"\",IF(BE8<$F$3,$F$3-BE8,\"\"),\"\")","v":""},null,null,{"$f":"IF(BH8>$D$3,BH8-$D$3,\"\")","v":""},{"$f":"IF(BI8<>\"\",IF(BI8<$F$3,$F$3-BI8,\"\"),\"\")","v":""},null,null,{"$f":"IF(BL8>$D$3,BL8-$D$3,\"\")","v":""},{"$f":"IF(BM8<>\"\",IF(BM8<$F$3,$F$3-BM8,\"\"),\"\")","v":""},null,null,{"$f":"IF(BP8>$D$3,BP8-$D$3,\"\")","v":""},{"$f":"IF(BQ8<>\"\",IF(BQ8<$F$3,$F$3-BQ8,\"\"),\"\")","v":""},null,null,{"$f":"IF(BT8>$D$3,BT8-$D$3,\"\")","v":""},{"$f":"IF(BU8<>\"\",IF(BU8<$F$3,$F$3-BU8,\"\"),\"\")","v":""},null,null,{"$f":"IF(BX8>$D$3,BX8-$D$3,\"\")","v":""},{"$f":"IF(BY8<>\"\",IF(BY8<$F$3,$F$3-BY8,\"\"),\"\")","v":""},null,null,{"$f":"IF(CB8>$D$3,CB8-$D$3,\"\")","v":""},{"$f":"IF(CC8<>\"\",IF(CC8<$F$3,$F$3-CC8,\"\"),\"\")","v":""},null,null,{"$f":"IF(CF8>$D$3,CF8-$D$3,\"\")","v":""},{"$f":"IF(CG8<>\"\",IF(CG8<$F$3,$F$3-CG8,\"\"),\"\")","v":""},null,null,{"$f":"IF(CJ8>$D$3,CJ8-$D$3,\"\")","v":""},{"$f":"IF(CK8<>\"\",IF(CK8<$F$3,$F$3-CK8,\"\"),\"\")","v":""},null,null,{"$f":"IF(CN8>$D$3,CN8-$D$3,\"\")","v":""},{"$f":"IF(CO8<>\"\",IF(CO8<$F$3,$F$3-CO8,\"\"),\"\")","v":""},null,null,{"$f":"IF(CR8>$D$3,CR8-$D$3,\"\")","v":""},{"$f":"IF(CS8<>\"\",IF(CS8<$F$3,$F$3-CS8,\"\"),\"\")","v":""},null,null,{"$f":"IF(CV8>$D$3,CV8-$D$3,\"\")","v":""},{"$f":"IF(CW8<>\"\",IF(CW8<$F$3,$F$3-CW8,\"\"),\"\")","v":""},null,null,{"$f":"IF(CZ8>$D$3,CZ8-$D$3,\"\")","v":""},{"$f":"IF(DA8<>\"\",IF(DA8<$F$3,$F$3-DA8,\"\"),\"\")","v":""},null,null,{"$f":"IF(DD8>$D$3,DD8-$D$3,\"\")","v":""},{"$f":"IF(DE8<>\"\",IF(DE8<$F$3,$F$3-DE8,\"\"),\"\")","v":""},null,null,{"$f":"IF(DH8>$D$3,DH8-$D$3,\"\")","v":""},{"$f":"IF(DI8<>\"\",IF(DI8<$F$3,$F$3-DI8,\"\"),\"\")","v":""},null,null,{"$f":"IF(DL8>$D$3,DL8-$D$3,\"\")","v":""},{"$f":"IF(DM8<>\"\",IF(DM8<$F$3,$F$3-DM8,\"\"),\"\")","v":""},null,null,{"$f":"IF(DP8>$D$3,DP8-$D$3,\"\")","v":""},{"$f":"IF(DQ8<>\"\",IF(DQ8<$F$3,$F$3-DQ8,\"\"),\"\")","v":""},null,null,{"$f":"IF(DT8>$D$3,DT8-$D$3,\"\")","v":""},{"$f":"IF(DU8<>\"\",IF(DU8<$F$3,$F$3-DU8,\"\"),\"\")","v":""}]
[1,null,null,null,null,{"$f":"IFERROR(HOUR(D9-$D$3)*60+MINUTE(D9-$D$3),\"\")","v":""},null,null,null,{"$f":"IFERROR(HOUR(H9-$D$3)*60+MINUTE(H9-$D$3),\"\")","v":""},null,null,null,{"$f":"IFERROR(HOUR(L9-$D$3)*60+MINUTE(L9-$D$3),\"\")","v":""},null,null,null,{"$f":"IFERROR(HOUR(P9-$D$3)*60+MINUTE(P9-$D$3),\"\")","v":""},null,null,null,{"$f":"IFERROR(HOUR(T9-$D$3)*60+MINUTE(T9-$D$3),\"\")","v":""},null,null,null,{"$f":"IFERROR(HOUR(X9-$D$3)*60+MINUTE(X9-$D$3),\"\")","v":""},null,null,null,{"$f":"IFERROR(HOUR(AB9-$D$3)*60+MINUTE(AB9-$D$3),\"\")","v":""},null,null,null,{"$f":"IFERROR(HOUR(AF9-$D$3)*60+MINUTE(AF9-$D$3),\"\")","v":""},null,null,null,{"$f":"IFERROR(HOUR(AJ9-$D$3)*60+MINUTE(AJ9-$D$3),\"\")","v":""},null,null,null,{"$f":"IFERROR(HOUR(AN9-$D$3)*60+MINUTE(AN9-$D$3),\"\")","v":""},null,null,null,{"$f":"IFERROR(HOUR(AR9-$D$3)*60+MINUTE(AR9-$D$3),\"\")","v":""},null,null,null,{"$f":"IFERROR(HOUR(AV9-$D$3)*60+MINUTE(AV9-$D$3),\"\")","v":""},null,null,null,{"$f":"IFERROR(HOUR(AZ9-$D$3)*60+MINUTE(AZ9-$D$3),\"\")","v":""},null,null,null,{"$f":"IFERROR(HOUR(BD9-$D$3)*60+MINUTE(BD9-$D$3),\"\")","v":""},null,null,null,{"$f":"IFERROR(HOUR(BH9-$D$3)*60+MINUTE(BH9-$D$3),\"\")","v":""},null,null,null,{"$f":"IFERROR(HOUR(BL9-$D$3)*60+MINUTE(BL9-$D$3),\"\")","v":""},null,null,null,{"$f":"IFERROR(HOUR(BP9-$D$3)*60+MINUTE(BP9-$D$3),\"\")","v":""},null,null,null,{"$f":"IFERROR(HOUR(BT9-$D$3)*60+MINUTE(BT9-$D$3),\"\")","v":""},null,null,null,{"$f":"IFERROR(HOUR(BX9-$D$3)*60+MINUTE(BX9-$D$3),\"\")","v":""},null,null,null,{"$f":"IFERROR(HOUR(CB9-$D$3)*60+MINUTE(CB9-$D$3),\"\")","v":""},null,null,null,{"$f":"IFERROR(HOUR(CF9-$D$3)*60+MINUTE(CF9-$D$3),\"\")","v":""},null,null,null,{"$f":"IFERROR(HOUR(CJ9-$D$3)*60+MINUTE(CJ9-$D$3),\"\")","v":""},null,null,null,{"$f":"IFERROR(HOUR(CN9-$D$3)*60+MINUTE(CN9-$D$3),\"\")","v":""},null,null,null,{"$f":"IFERROR(HOUR(CR9-$D$3)*60+MINUTE(CR9-$D$3),\"\")","v":""},null,null,null,{"$f":"IFERROR(HOUR(CV9-$D$3)*60+MINUTE(CV9-$D$3),\"\")","v":""},null,null,null,{"$f":"IFERROR(HOUR(CZ9-$D$3)*60+MINUTE(CZ9-$D$3),\"\")","v":""},null,null,null,{"$f":"IFERROR(HOUR(DD9-$D$3)*60+MINUTE(DD9-$D$3),\"\")","v":""},null,null,null,{"$f":"IFERROR(HOUR(DH9-$D$3)*60+MINUTE(DH9-$D$3),\"\")","v":""},null,null,null,{"$f":"IFERROR(HOUR(DL9-$D$3)*60+MINUTE(DL9-$D$3),\"\")","v":""},null,null,null,{"$f":"IFERROR(HOUR(DP9-$D$3)*60+MINUTE(DP9-$D$3),\"\")","v":""},null,null,null,{"$f":"IFERROR(HOUR(DT9-$D$3)*60+MINUTE(DT9-$D$3),\"\")","v":""}]
[2,null,null,null,null,{"$f":"IFERROR(HOUR(D10-$D$3)*60+MINUTE(D10-$D$3),\"\")","v":""},null,null,null,"",null,null,null,"",null,null,null,"",null,null,null,"",null,null,null,"",null,null,null,"",null,null,null,"",null,null,null,"",null,null,null,"",null,null,null,"",null,null,null,"",null,null,null,"",null,null,null,"",null,null,null,"",null,null,null,"",null,null,null,"",null,null,null,"",null,null,null,"",null,null,null,"",null,null,null,"",null,null,null,"",null,null,null,"",null,null,null,"",null,null,null,"",null,null,null,"",null,null,null,"",null,null,null,"",null,null,null,"",null,null,null,"",null,null,null,""]
[3,null,null,null,null,"",null,null,null,"",null,null,null,"",null,null,null,"",null,null,null,"",null,null,null,"",null,null,null,"",null,null,null,"",null,null,null,"",null,null,null,"",null,null,null,"",null,null,null,"",null,null,null,"",null,null,null,"",null,null,null,"",null,null,null,"",null,null,null,"",null,null,null,"",null,null,null,"",null,null,null,"",null,null,null,"",null,null,null,"",null,null,null,"",null,null,null,"",null,null,null,"",null,null,null,"",null,null,null,"",null,null,null,"",null,null,null,"",null,null,null,"",null,null,null,""]
[4,null,null,null,null,"",null,null,null,"",null,null,null,"",null,null,null,"",null,null,null,"",null,null,null,"",null,null,null,"",null,null,null,"",null,null,null,"",null,null,null,"",null,null,null,"",null,null,null,"",null,null,null,"",null,null,null,"",null,null,null,"",null,null,null,"",null,null,null,"",null,null,null,"",null,null,null,"",null,null,null,"",null,null,null,"",null,null,null,"",null,null,null,"",null,null,null,"",null,null,null,"",null,null,null,"",null,null,null,"",null,null,null,"",null,null,null,"",null,null,null,"",null,null,null,""]
[5,null,null,null,null,"",null,null,null,"",null,null,null,"",null,null,null,"",null,null,null,"",null,null,null,"",null,null,null,"",null,null,null,"",null,null,null,"",null,null,null,"",null,null,null,"",null,null,null,"",null,null,null,"",null,null,null,"",null,null,null,"",null,null,null,"",null,null,null,"",null,null,null,"",null,null,null,"",null,null,null,"",null,null,null,"",null,null,null,"",null,null,null,"",null,null,null,"",null,null,null,"",null,null,null,"",null,null,null,"",null,null,null,"",null,null,null,"",null,null,null,"",null,null,null,""]
[6,null,null,null,null,"",null,null,null,"",null,null,null,"",null,null,null,"",null,null,null,"",null,null,null,"",null,null,null,"",null,null,null,"",null,null,null,"",null,null,null,"",null,null,null,"",null,null,null,"",null,null,null,"",null,null,null,"",null,null,null,"",null,null,null,"",null,null,null,"",null,null,null,"",null,null,null,"",null,null,null,"",null,null,null,"",null,null,null,"",null,null,null,"",null,null,null,"",null,null,null,"",null,null,null,"",null,null,null,"",null,null,null,"",null,null,null,"",null,null,null,"",null,null,null,""]
[7,null,null,null,null,"",null,null,null,"",null,null,null,"",null,null,null,"",null,null,null,"",null,null,null,"",null,null,null,"",null,null,null,"",null,null,null,"",null,null,null,"",null,null,null,"",null,null,null,"",null,null,null,"",null,null,null,"",null,null,null,"",null,null,null,"",null,null,null,"",null,null,null,"",null,null,null,"",null,null,null,"",null,null,null,"",null,null,null,"",null,null,null,"",null,null,null,"",null,null,null,"",null,null,null,"",null,null,null,"",null,null,null,"",null,null,null,"",null,null,null,"",null,null,null,""]
[8,null,null,null,null,"",null,null,null,"",null,null,null,"",null,null,null,"",null,null,null,"",null,null,null,"",null,null,null,"",null,null,null,"",null,null,null,"",null,null,null,"",null,null,null,"",null,null,null,"",null,null,null,"",null,null,null,"",null,null,null,"",null,null,null,"",null,null,null,"",null,null,null,"",null,null,null,"",null,null,null,"",null,null,null,"",null,null,null,"",null,null,null,"",null,null,null,"",null,null,null,"",null,null,null,"",null,null,null,"",null,null,null,"",null,null,null,"",null,null,null,"",null,null,null,""]
[9,null,null,null,null,"",null,null,null,"",null,null,null,"",null,null,null,"",null,null,null,"",null,null,null,"",null,null,null,"",null,null,null,"",null,null,null,"",null,null,null,"",null,null,null,"",null,null,null,"",null,null,null,"",null,null,null,"",null,null,null,"",null,null,null,"",null,null,null,"",null,null,null,"",null,null,null,"",null,null,null,"",null,null,null,"",null,null,null,"",null,null,null,"",null,null,null,"",null,null,null,"",null,null,null,"",null,null,null,"",null,null,null,"",null,null,null,"",null,null,null,"",null,null,null,""]
[10,null,null,null,null,"",null,null,null,"",null,null,null,"",null,null,null,"",null,null,null,"",null,null,null,"",null,null,null,"",null,null,null,"",null,null,null,"",null,null,null,"",null,null,null,"",null,null,null,"",null,null,null,"",null,null,null,"",null,null,null,"",null,null,null,"",null,null,null,"",null,null,null,"",null,null,null,"",null,null,null,"",null,null,null,"",null,null,null,"",null,null,null,"",null,null,null,"",null,null,null,"",null,null,null,"",null,null,null,"",null,null,null,"",null,null,null,"",null,null,null,"",null,null,null,""]
[11,null,null,null,null,"",null,null,null,"",null,null,null,"",null,null,null,"",null,null,null,"",null,null,null,"",null,null,null,"",null,null,null,"",null,null,null,"",null,null,null,"",null,null,null,"",null,null,null,"",null,null,null,"",null,null,null,"",null,null,null,"",null,null,null,"",null,null,null,"",null,null,null,"",null,null,null,"",null,null,null,"",null,null,null,"",null,null,null,"",null,null,null,"",null,null,null,"",null,null,null,"",null,null,null,"",null,null,null,"",null,null,null,"",null,null,null,"",null,null,null,"",null,null,null,""]
[12,null,null,null,null,"",null,null,null,"",null,null,null,"",null,null,null,"",null,null,null,"",null,null,null,"",null,null,null,"",null,null,null,"",null,null,null,"",null,null,null,"",null,null,null,"",null,null,null,"",null,null,null,"",null,null,null,"",null,null,null,"",null,null,null,"",null,null,null,"",null,null,null,"",null,null,null,"",null,null,null,"",null,null,null,"",null,null,null,"",null,null,null,"",null,null,null,"",null,null,null,"",null,null,null,"",null,null,null,"",null,null,null,"",null,null,null,"",null,null,null,"",null,null,null,""]
[13,null,null,null,null,"",null,null,null,"",null,null,null,"",null,null,null,"",null,null,null,"",null,null,null,"",null,null,null,"",null,null,null,"",null,null,null,"",null,null,null,"",null,null,null,"",null,null,null,"",null,null,null,"",null,null,null,"",null,null,null,"",null,null,null,"",null,null,null,"",null,null,null,"",null,null,null,"",null,null,null,"",null,null,null,"",null,null,null,"",null,null,null,"",null,null,null,"",null,null,null,"",null,null,null,"",null,null,null,"",null,null,null,"",null,null,null,"",null,null,null,"",null,null,null,""]
[14,null,null,null,null,"",null,null,null,"",null,null,null,"",null,null,null,"",null,null,null,"",null,null,null,"",null,null,null,"",null,null,null,"",null,null,null,"",null,null,null,"",null,null,null,"",null,null,null,"",null,null,null,"",null,null,null,"",null,null,null,"",null,null,null,"",null,null,null,"",null,null,null,"",null,null,null,"",null,null,null,"",null,null,null,"",null,null,null,"",null,null,null,"",null,null,null,"",null,null,null,"",null,null,null,"",null,null,null,"",null,null,null,"",null,null,null,"",null,null,null,"",null,null,null,""]
[15,null,null,null,null,"",null,null,null,"",null,null,null,"",null,null,null,"",null,null,null,"",null,null,null,"",null,null,null,"",null,null,null,"",null,null,null,"",null,null,null,"",null,null,null,"",null,null,null,"",null,null,null,"",null,null,null,"",null,null,null,"",null,null,null,"",null,null,null,"",null,null,null,"",null,null,null,"",null,null,null,"",null,null,null,"",null,null,null,"",null,null,null,"",null,null,null,"",null,null,null,"",null,null,null,"",null,null,null,"",null,null,null,"",null,null,null,"",null,null,null,"",null,null,null,""]
[16,null,null,null,null,"",null,null,null,"",null,null,null,"",null,null,null,"",null,null,null,"",null,null,null,"",null,null,null,"",null,null,null,"",null,null,null,"",null,null,null,"",null,null,null,"",null,null,null,"",null,null,null,"",null,null,null,"",null,null,null,"",null,null,null,"",null,null,null,"",null,null,null,"",null,null,null,"",null,null,null,"",null,null,null,"",null,null,null,"",null,null,null,"",null,null,null,"",null,null,null,"",null,null,null,"",null,null,null,"",null,null,null,"",null,null,null,"",null,null,null,"",null,null,null,""]
[17,null,null,null,null,"",null,null,null,"",null,null,null,"",null,null,null,"",null,null,null,"",null,null,null,"",null,null,null,"",null,null,null,"",null,null,null,"",null,null,null,"",null,null,null,"",null,null,null,"",null,null,null,"",null,null,null,"",null,null,null,"",null,null,null,"",null,null,null,"",null,null,null,"",null,null,null,"",null,null,null,"",null,null,null,"",null,null,null,"",null,null,null,"",null,null,null,"",null,null,null,"",null,null,null,"",null,null,null,"",null,null,null,"",null,null,null,"",null,null,null,"",null,null,null,""]
[18,null,null,null,null,"",null,null,null,"",null,null,null,"",null,null,null,"",null,null,null,"",null,null,null,"",null,null,null,"",null,null,null,"",null,null,null,"",null,null,null,"",null,null,null,"",null,null,null,"",null,null,null,"",null,null,null,"",null,null,null,"",null,null,null,"",null,null,null,"",null,null,null,"",null,null,null,"",null,null,null,"",null,null,null,"",null,null,null,"",null,null,null,"",null,null,null,"",null,null,null,"",null,null,null,"",null,null,null,"",null,null,null,"",null,null,null,"",null,null,null,"",null,null,null,""]
[19,null,null,null,null,"",null,null,null,"",null,null,null,"",null,null,null,"",null,null,null,"",null,null,null,"",null,null,null,"",null,null,null,"",null,null,null,"",null,null,null,"",null,null,null,"",null,null,null,"",null,null,null,"",null,null,null,"",null,null,null,"",null,null,null,"",null,null,null,"",null,null,null,"",null,null,null,"",null,null,null,"",null,null,null,"",null,null,null,"",null,null,null,"",null,null,null,"",null,null,null,"",null,null,null,"",null,null,null,"",null,null,null,"",null,null,null,"",null,null,null,"",null,null,null,""]
[20,null,null,null,null,"",null,null,null,"",null,null,null,"",null,null,null,"",null,null,null,"",null,null,null,"",null,null,null,"",null,null,null,"",null,null,null,"",null,null,null,"",null,null,null,"",null,null,null,"",null,null,null,"",null,null,null,"",null,null,null,"",null,null,null,"",null,null,null,"",null,null,null,"",null,null,null,"",null,null,null,"",null,null,null,"",null,null,null,"",null,null,null,"",null,null,null,"",null,null,null,"",null,null,null,"",null,null,null,"",null,null,null,"",null,null,null,"",null,null,null,"",null,null,null,""]
[21,null,null,null,null,"",null,null,null,"",null,null,null,"",null,null,null,"",null,null,null,"",null,null,null,"",null,null,null,"",null,null,null,"",null,null,null,"",null,null,null,"",null,null,null,"",null,null,null,"",null,null,null,"",null,null,null,"",null,null,null,"",null,null,null,"",null,null,null,"",null,null,null,"",null,null,null,"",null,null,null,"",null,null,null,"",null,null,null,"",null,null,null,"",null,null,null,"",null,null,null,"",null,null,null,"",null,null,null,"",null,null,null,"",null,null,null,"",null,null,null,"",null,null,null,""]
[22,null,null,null,null,"",null,null,null,"",null,null,null,"",null,null,null,"",null,null,null,"",null,null,null,"",null,null,null,"",null,null,null,"",null,null,null,"",null,null,null,"",null,null,null,"",null,null,null,"",null,null,null,"",null,null,null,"",null,null,null,"",null,null,null,"",null,null,null,"",null,null,null,"",null,null,null,"",null,null,null,"",null,null,null,"",null,null,null,"",null,null,null,"",null,null,null,"",null,null,null,"",null,null,null,"",null,null,null,"",null,null,null,"",null,null,null,"",null,null,null,"",null,null,null,""]
[23,null,null,null,null,"",null,null,null,"",null,null,null,"",null,null,null,"",null,null,null,"",null,null,null,"",null,null,null,"",null,null,null,"",null,null,null,"",null,null,null,"",null,null,null,"",null,null,null,"",null,null,null,"",null,null,null,"",null,null,null,"",null,null,null,"",null,null,null,"",null,null,null,"",null,null,null,"",null,null,null,"",null,null,null,"",null,null,null,"",null,null,null,"",null,null,null,"",null,null,null,"",null,null,null,"",null,null,null,"",null,null,null,"",null,null,null,"",null,null,null,"",null,null,null,""]
[24,null,null,null,null,"",null,null,null,"",null,null,null,"",null,null,null,"",null,null,null,"",null,null,null,"",null,null,null,"",null,null,null,"",null,null,null,"",null,null,null,"",null,null,null,"",null,null,null,"",null,null,null,"",null,null,null,"",null,null,null,"",null,null,null,"",null,null,null,"",null,null,null,"",null,null,null,"",null,null,null,"",null,null,null,"",null,null,null,"",null,null,null,"",null,null,null,"",null,null,null,"",null,null,null,"",null,null,null,"",null,null,null,"",null,null,null,"",null,null,null,"",null,null,null,""]
[25,null,null,null,null,"",null,null,null,"",null,null,null,"",null,null,null,"",null,null,null,"",null,null,null,"",null,null,null,"",null,null,null,"",null,null,null,"",null,null,null,"",null,null,null,"",null,null,null,"",null,null,null,"",null,null,null,"",null,null,null,"",null,null,null,"",null,null,null,"",null,null,null,"",null,null,null,"",null,null,null,"",null,null,null,"",null,null,null,"",null,null,null,"",null,null,null,"",null,null,null,"",null,null,null,"",null,null,null,"",null,null,null,"",null,null,null,"",null,null,null,"",null,null,null,""]
[26,null,null,null,null,"",null,null,null,"",null,null,null,"",null,null,null,"",null,null,null,"",null,null,null,"",null,null,null,"",null,null,null,"",null,null,null,"",null,null,null,"",null,null,null,"",null,null,null,"",null,null,null,"",null,null,null,"",null,null,null,"",null,null,null,"",null,null,null,"",null,null,null,"",null,null,null,"",null,null,null,"",null,null,null,"",null,null,null,"",null,null,null,"",null,null,null,"",null,null,null,"",null,null,null,"",null,null,null,"",null,null,null,"",null,null,null,"",null,null,null,"",null,null,null,""]
[27,null,null,null,null,"",null,null,null,"",null,null,null,"",null,null,null,"",null,null,null,"",null,null,null,"",null,null,null,"",null,null,null,"",null,null,null,"",null,null,null,"",null,null,null,"",null,null,null,"",null,null,null,"",null,null,null,"",null,null,null,"",null,null,null,"",null,null,null,"",null,null,null,"",null,null,null,"",null,null,null,"",null,null,null,"",null,null,null,"",null,null,null,"",null,null,null,"",null,null,null,"",null,null,null,"",null,null,null,"",null,null,null,"",null,null,null,"",null,null,null,"",null,null,null,""]
[28,null,null,null,null,"",null,null,null,"",null,null,null,"",null,null,null,"",null,null,null,"",null,null,null,"",null,null,null,"",null,null,null,"",null,null,null,"",null,null,null,"",null,null,null,"",null,null,null,"",null,null,null,"",null,null,null,"",null,null,null,"",null,null,null,"",null,null,null,"",null,null,null,"",null,null,null,"",null,null,null,"",null,null,null,"",null,null,null,"",null,null,null,"",null,null,null,"",null,null,null,"",null,null,null,"",null,null,null,"",null,null,null,"",null,null,null,"",null,null,null,"",null,null,null,""]
[29,null,null,null,null,"",null,null,null,"",null,null,null,"",null,null,null,"",null,null,null,"",null,null,null,"",null,null,null,"",null,null,null,"",null,null,null,"",null,null,null,"",null,null,null,"",null,null,null,"",null,null,null,"",null,null,null,"",null,null,null,"",null,null,null,"",null,null,null,"",null,null,null,"",null,null,null,"",null,null,null,"",null,null,null,"",null,null,null,"",null,null,null,"",null,null,null,"",null,null,null,"",null,null,null,"",null,null,null,"",null,null,null,"",null,null,null,"",null,null,null,"",null,null,null,""]
[30,null,null,null,null,"",null,null,null,"",null,null,null,"",null,null,null,"",null,null,null,"",null,null,null,"",null,null,null,"",null,null,null,"",null,null,null,"",null,null,null,"",null,null,null,"",null,null,null,"",null,null,null,"",null,null,null,"",null,null,null,"",null,null,null,"",null,null,null,"",null,null,null,"",null,null,null,"",null,null,null,"",null,null,null,"",null,null,null,"",null,null,null,"",null,null,null,"",null,null,null,"",null,null,null,"",null,null,null,"",null,null,null,"",null,null,null,"",null,null,null,"",null,null,null,""]
[31,null,null,null,null,"",null,null,null,"",null,null,null,"",null,null,null,"",null,null,null,"",null,null,null,"",null,null,null,"",null,null,null,"",null,null,null,"",null,null,null,"",null,null,null,"",null,null,null,"",null,null,null,"",null,null,null,"",null,null,null,"",null,null,null,"",null,null,null,"",null,null,null,"",null,null,null,"",null,null,null,"",null,null,null,"",null,null,null,"",null,null,null,"",null,null,null,"",null,null,null,"",null,null,null,"",null,null,null,"",null,null,null,"",null,null,null,"",null,null,null,"",null,null,null,""]
[32,null,null,null,null,"",null,null,null,"",null,null,null,"",null,null,null,"",null,null,null,"",null,null,null,"",null,null,null,"",null,null,null,"",null,null,null,"",null,null,null,"",null,null,null,"",null,null,null,"",null,null,null,"",null,null,null,"",null,null,null,"",null,null,null,"",null,null,null,"",null,null,null,"",null,null,null,"",null,null,null,"",null,null,null,"",null,null,null,"",null,null,null,"",null,null,null,"",null,null,null,"",null,null,null,"",null,null,null,"",null,null,null,"",null,null,null,"",null,null,null,"",null,null,null,""]
[33,null,null,null,null,"",null,null,null,"",null,null,null,"",null,null,null,"",null,null,null,"",null,null,null,"",null,null,null,"",null,null,null,"",null,null,null,"",null,null,null,"",null,null,null,"",null,null,null,"",null,null,null,"",null,null,null,"",null,null,null,"",null,null,null,"",null,null,null,"",null,null,null,"",null,null,null,"",null,null,null,"",null,null,null,"",null,null,null,"",null,null,null,"",null,null,null,"",null,null,null,"",null,null,null,"",null,null,null,"",null,null,null,"",null,null,null,"",null,null,null,"",null,null,null,""]
[34,null,null,null,null,"",null,null,null,"",null,null,null,"",null,null,null,"",null,null,null,"",null,null,null,"",null,null,null,"",null,null,null,"",null,null,null,"",null,null,null,"",null,null,null,"",null,null,null,"",null,null,null,"",null,null,null,"",null,null,null,"",null,null,null,"",null,null,null,"",null,null,null,"",null,null,null,"",null,null,null,"",null,null,null,"",null,null,null,"",null,null,null,"",null,null,null,"",null,null,null,"",null,null,null,"",null,null,null,"",null,null,null,"",null,null,null,"",null,null,null,"",null,null,null,""]
[35,null,null,null,null,"",null,null,null,"",null,null,null,"",null,null,null,"",null,null,null,"",null,null,null,"",null,null,null,"",null,null,null,"",null,null,null,"",null,null,null,"",null,null,null,"",null,null,null,"",null,null,null,"",null,null,null,"",null,null,null,"",null,null,null,"",null,null,null,"",null,null,null,"",null,null,null,"",null,null,null,"",null,null,null,"",null,null,null,"",null,null,null,"",null,null,null,"",null,null,null,"",null,null,null,"",null,null,null,"",null,null,null,"",null,null,null,"",null,null,null,"",null,null,null,""]
[36,null,null,null,null,"",null,null,null,"",null,null,null,"",null,null,null,"",null,null,null,"",null,null,null,"",null,null,null,"",null,null,null,"",null,null,null,"",null,null,null,"",null,null,null,"",null,null,null,"",null,null,null,"",null,null,null,"",null,null,null,"",null,null,null,"",null,null,null,"",null,null,null,"",null,null,null,"",null,null,null,"",null,null,null,"",null,null,null,"",null,null,null,"",null,null,null,"",null,null,null,"",null,null,null,"",null,null,null,"",null,null,null,"",null,null,null,"",null,null,null,"",null,null,null,""]
[37,null,null,null,null,"",null,null,null,"",null,null,null,"",null,null,null,"",null,null,null,"",null,null,null,"",null,null,null,"",null,null,null,"",null,null,null,"",null,null,null,"",null,null,null,"",null,null,null,"",null,null,null,"",null,null,null,"",null,null,null,"",null,null,null,"",null,null,null,"",null,null,null,"",null,null,null,"",null,null,null,"",null,null,null,"",null,null,null,"",null,null,null,"",null,null,null,"",null,null,null,"",null,null,null,"",null,null,null,"",null,null,null,"",null,null,null,"",null,null,null,"",null,null,null,""]
[38,null,null,null,null,"",null,null,null,"",null,null,null,"",null,null,null,"",null,null,null,"",null,null,null,"",null,null,null,"",null,null,null,"",null,null,null,"",null,null,null,"",null,null,null,"",null,null,null,"",null,null,null,"",null,null,null,"",null,null,null,"",null,null,null,"",null,null,null,"",null,null,null,"",null,null,null,"",null,null,null,"",null,null,null,"",null,null,null,"",null,null,null,"",null,null,null,"",null,null,null,"",null,null,null,"",null,null,null,"",null,null,null,"",null,null,null,"",null,null,null,"",null,null,null,""]
[39,null,null,null,null,"",null,null,null,"",null,null,null,"",null,null,null,"",null,null,null,"",null,null,null,"",null,null,null,"",null,null,null,"",null,null,null,"",null,null,null,"",null,null,null,"",null,null,null,"",null,null,null,"",null,null,null,"",null,null,null,"",null,null,null,"",null,null,null,"",null,null,null,"",null,null,null,"",null,null,null,"",null,null,null,"",null,null,null,"",null,null,null,"",null,null,null,"",null,null,null,"",null,null,null,"",null,null,null,"",null,null,null,"",null,null,null,"",null,null,null,"",null,null,null,""]
[40,null,null,null,null,"",null,null,null,"",null,null,null,"",null,null,null,"",null,null,null,"",null,null,null,"",null,null,null,"",null,null,null,"",null,null,null,"",null,null,null,"",null,null,null,"",null,null,null,"",null,null,null,"",null,null,null,"",null,null,null,"",null,null,null,"",null,null,null,"",null,null,null,"",null,null,null,"",null,null,null,"",null,null,null,"",null,null,null,"",null,null,null,"",null,null,null,"",null,null,null,"",null,null,null,"",null,null,null,"",null,null,null,"",null,null,null,"",null,null,null,"",null,null,null,""]
[41,null,null,null,null,"",null,null,null,"",null,null,null,"",null,null,null,"",null,null,null,"",null,null,null,"",null,null,null,"",null,null,null,"",null,null,null,"",null,null,null,"",null,null,null,"",null,null,null,"",null,null,null,"",null,null,null,"",null,null,null,"",null,null,null,"",null,null,null,"",null,null,null,"",null,null,null,"",null,null,null,"",null,null,null,"",null,null,null,"",null,null,null,"",null,null,null,"",null,null,null,"",null,null,null,"",null,null,null,"",null,null,null,"",null,null,null,"",null,null,null,"",null,null,null,""]
[42,null,null,null,null,"",null,null,null,"",null,null,null,"",null,null,null,"",null,null,null,"",null,null,null,"",null,null,null,"",null,null,null,"",null,null,null,"",null,null,null,"",null,null,null,"",null,null,null,"",null,null,null,"",null,null,null,"",null,null,null,"",null,null,null,"",null,null,null,"",null,null,null,"",null,null,null,"",null,null,null,"",null,null,null,"",null,null,null,"",null,null,null,"",null,null,null,"",null,null,null,"",null,null,null,"",null,null,null,"",null,null,null,"",null,null,null,"",null,null,null,"",null,null,null,""]
[43,null,null,null,null,"",null,null,null,"",null,null,null,"",null,null,null,"",null,null,null,"",null,null,null,"",null,null,null,"",null,null,null,"",null,null,null,"",null,null,null,"",null,null,null,"",null,null,null,"",null,null,null,"",null,null,null,"",null,null,null,"",null,null,null,"",null,null,null,"",null,null,null,"",null,null,null,"",null,null,null,"",null,null,null,"",null,null,null,"",null,null,null,"",null,null,null,"",null,null,null,"",null,null,null,"",null,null,null,"",null,null,null,"",null,null,null,"",null,null,null,"",null,null,null,""]
[44,null,null,null,null,"",null,null,null,"",null,null,null,"",null,null,null,"",null,null,null,"",null,null,null,"",null,null,null,"",null,null,null,"",null,null,null,"",null,null,null,"",null,null,null,"",null,null,null,"",null,null,null,"",null,null,null,"",null,null,null,"",null,null,null,"",null,null,null,"",null,null,null,"",null,null,null,"",null,null,null,"",null,null,null,"",null,null,null,"",null,null,null,"",null,null,null,"",null,null,null,"",null,null,null,"",null,null,null,"",null,null,null,"",null,null,null,"",null,null,null,"",null,null,null,""]
[45,null,null,null,null,"",null,null,null,"",null,null,null,"",null,null,null,"",null,null,null,"",null,null,null,"",null,null,null,"",null,null,null,"",null,null,null,"",null,null,null,"",null,null,null,"",null,null,null,"",null,null,null,"",null,null,null,"",null,null,null,"",null,null,null,"",null,null,null,"",null,null,null,"",null,null,null,"",null,null,null,"",null,null,null,"",null,null,null,"",null,null,null,"",null,null,null,"",null,null,null,"",null,null,null,"",null,null,null,"",null,null,null,"",null,null,null,"",null,null,null,"",null,null,null,""]
[46,null,null,null,null,"",null,null,null,"",null,null,null,"",null,null,null,"",null,null,null,"",null,null,null,"",null,null,null,"",null,null,null,"",null,null,null,"",null,null,null,"",null,null,null,"",null,null,null,"",null,null,null,"",null,null,null,"",null,null,null,"",null,null,null,"",null,null,null,"",null,null,null,"",null,null,null,"",null,null,null,"",null,null,null,"",null,null,null,"",null,null,null,"",null,null,null,"",null,null,null,"",null,null,null,"",null,null,null,"",null,null,null,"",null,null,null,"",null,null,null,"",null,null,null,""]
[47,null,null,null,null,"",null,null,null,"",null,null,null,"",null,null,null,"",null,null,null,"",null,null,null,"",null,null,null,"",null,null,null,"",null,null,null,"",null,null,null,"",null,null,null,"",null,null,null,"",null,null,null,"",null,null,null,"",null,null,null,"",null,null,null,"",null,null,null,"",null,null,null,"",null,null,null,"",null,null,null,"",null,null,null,"",null,null,null,"",null,null,null,"",null,null,null,"",null,null,null,"",null,null,null,"",null,null,null,"",null,null,null,"",null,null,null,"",null,null,null,"",null,null,null,""]
[48,null,null,null,null,"",null,null,null,"",null,null,null,"",null,null,null,"",null,null,null,"",null,null,null,"",null,null,null,"",null,null,null,"",null,null,null,"",null,null,null,"",null,null,null,"",null,null,null,"",null,null,null,"",null,null,null,"",null,null,null,"",null,null,null,"",null,null,null,"",null,null,null,"",null,null,null,"",null,null,null,"",null,null,null,"",null,null,null,"",null,null,null,"",null,null,null,"",null,null,null,"",null,null,null,"",null,null,null,"",null,null,null,"",null,null,null,"",null,null,null,"",null,null,null,""]
[49,null,null,null,null,"",null,null,null,"",null,null,null,"",null,null,null,"",null,null,null,"",null,null,null,"",null,null,null,"",null,null,null,"",null,null,null,"",null,null,null,"",null,null,null,"",null,null,null,"",null,null,null,"",null,null,null,"",null,null,null,"",null,null,null,"",null,null,null,"",null,null,null,"",null,null,null,"",null,null,null,"",null,null,null,"",null,null,null,"",null,null,null,"",null,null,null,"",null,null,null,"",null,null,null,"",null,null,null,"",null,null,null,"",null,null,null,"",null,null,null,"",null,null,null,""]
[50,null,null,null,null,"",null,null,null,"",null,null,null,"",null,null,null,"",null,null,null,"",null,null,null,"",null,null,null,"",null,null,null,"",null,null,null,"",null,null,null,"",null,null,null,"",null,null,null,"",null,null,null,"",null,null,null,"",null,null,null,"",null,null,null,"",null,null,null,"",null,null,null,"",null,null,null,"",null,null,null,"",null,null,null,"",null,null,null,"",null,null,null,"",null,null,null,"",null,null,null,"",null,null,null,"",null,null,null,"",null,null,null,"",null,null,null,"",null,null,null,"",null,null,null,""]
[51,null,null,null,null,"",null,null,null,"",null,null,null,"",null,null,null,"",null,null,null,"",null,null,null,"",null,null,null,"",null,null,null,"",null,null,null,"",null,null,null,"",null,null,null,"",null,null,null,"",null,null,null,"",null,null,null,"",null,null,null,"",null,null,null,"",null,null,null,"",null,null,null,"",null,null,null,"",null,null,null,"",null,null,null,"",null,null,null,"",null,null,null,"",null,null,null,"",null,null,null,"",null,null,null,"",null,null,null,"",null,null,null,"",null,null,null,"",null,null,null,"",null,null,null,""]
[52,null,null,null,null,"",null,null,null,"",null,null,null,"",null,null,null,"",null,null,null,"",null,null,null,"",null,null,null,"",null,null,null,"",null,null,null,"",null,null,null,"",null,null,null,"",null,null,null,"",null,null,null,"",null,null,null,"",null,null,null,"",null,null,null,"",null,null,null,"",null,null,null,"",null,null,null,"",null,null,null,"",null,null,null,"",null,null,null,"",null,null,null,"",null,null,null,"",null,null,null,"",null,null,null,"",null,null,null,"",null,null,null,"",null,null,null,"",null,null,null,"",null,null,null,""]
[53,null,null,null,null,"",null,null,null,"",null,null,null,"",null,null,null,"",null,null,null,"",null,null,null,"",null,null,null,"",null,null,null,"",null,null,null,"",null,null,null,"",null,null,null,"",null,null,null,"",null,null,null,"",null,null,null,"",null,null,null,"",null,null,null,"",null,null,null,"",null,null,null,"",null,null,null,"",null,null,null,"",null,null,null,"",null,null,null,"",null,null,null,"",null,null,null,"",null,null,null,"",null,null,null,"",null,null,null,"",null,null,null,"",null,null,null,"",null,null,null,"",null,null,null,""]
[54,null,null,null,null,"",null,null,null,"",null,null,null,"",null,null,null,"",null,null,null,"",null,null,null,"",null,null,null,"",null,null,null,"",null,null,null,"",null,null,null,"",null,null,null,"",null,null,null,"",null,null,null,"",null,null,null,"",null,null,null,"",null,null,null,"",null,null,null,"",null,null,null,"",null,null,null,"",null,null,null,"",null,null,null,"",null,null,null,"",null,null,null,"",null,null,null,"",null,null,null,"",null,null,null,"",null,null,null,"",null,null,null,"",null,null,null,"",null,null,null,"",null,null,null,""]
[null,null,null,null,null,"",null,null,null,"",null,null,null,"",null,null,null,"",null,null,null,"",null,null,null,"",null,null,null,"",null,null,null,"",null,null,null,"",null,null,null,"",null,null,null,"",null,null,null,"",null,null,null,"",null,null,null,"",null,null,null,"",null,null,null,"",null,null,null,"",null,null,null,"",null,null,null,"",null,null,null,"",null,null,null,"",null,null,null,"",null,null,null,"",null,null,null,"",null,null,null,"",null,null,null,"",null,null,null,"",null,null,null,"",null,null,null,"",null,null,null,"",null,null,null,""]
[null,null,null,null,null,"",null,null,null,"",null,null,null,"",null,null,null,"",null,null,null,"",null,null,null,"",null,null,null,"",null,null,null,"",null,null,null,"",null,null,null,"",null,null,null,"",null,null,null,"",null,null,null,"",null,null,null,"",null,null,null,"",null,null,null,"",null,null,null,"",null,null,null,"",null,null,null,"",null,null,null,"",null,null,null,"",null,null,null,"",null,null,null,"",null,null,null,"",null,null,null,"",null,null,null,"",null,null,null,"",null,null,null,"",null,null,null,"",null,null,null,"",null,null,null,""]
[null,null,null,null,null,"",null,null,null,"",null,null,null,"",null,null,null,"",null,null,null,"",null,null,null,"",null,null,null,"",null,null,null,"",null,null,null,"",null,null,null,"",null,null,null,"",null,null,null,"",null,null,null,"",null,null,null,"",null,null,null,"",null,null,null,"",null,null,null,"",null,null,null,"",null,null,null,"",null,null,null,"",null,null,null,"",null,null,null,"",null,null,null,"",null,null,null,"",null,null,null,"",null,null,null,"",null,null,null,"",null,null,null,"",null,null,null,"",null,null,null,"",null,null,null,""]
[null,null,null,null,null,"",null,null,null,"",null,null,null,"",null,null,null,"",null,null,null,"",null,null,null,"",null,null,null,"",null,null,null,"",null,null,null,"",null,null,null,"",null,null,null,"",null,null,null,"",null,null,null,"",null,null,null,"",null,null,null,"",null,null,null,"",null,null,null,"",null,null,null,"",null,null,null,"",null,null,null,"",null,null,null,"",null,null,null,"",null,null,null,"",null,null,null,"",null,null,null,"",null,null,null,"",null,null,null,"",null,null,null,"",null,null,null,"",null,null,null,"",null,null,null,""]